fUSD/lending_fUSD_20251222
["ID","MTS","AMOUNT","RATE_DAILY","PERIOD"]
[399472879,1766398242191,-500.0,0.00013698,2]
[399472880,1766398242201,-500.0,0.00013698,2]
[399472881,1766398242211,-500.0,0.00013698,2]
[399472882,1766398242220,-515.47412212,0.00013698,2]
[399472883,1766398242229,-500.0,0.00013698,2]
[399472884,1766398242239,-500.0,0.00013698,2]
[399472885,1766398242249,-500.0,0.00013698,2]
[399472886,1766398242259,-500.0,0.00013698,2]
[399472887,1766398242268,-500.0,0.00013698,2]
[399472888,1766398242278,-281.94007823,0.00013698,2]
[399472889,1766398242288,-500.0,0.00013698,2]
[399472890,1766398242297,-500.0,0.00013698,2]
[399472891,1766398242307,-500.0,0.00013698,2]
[399472892,1766398242317,-500.0,0.00013698,2]
[399472893,1766398242327,-500.0,0.00013698,2]
[399472894,1766398242336,-500.0,0.00013698,2]
[399472895,1766398242349,-500.0,0.00013698,2]
[399472896,1766398242358,-500.0,0.00013698,2]
[399472897,1766398242368,-500.0,0.00013698,2]
[399472898,1766398242377,-500.0,0.00013698,2]
[399472899,1766398242387,-518.52076054,0.00013698,2]
[399472900,1766398242397,-2469.13,0.00013698,2]
[399472901,1766398242406,-380.49841819,0.00013698,2]
[399472902,1766398242416,-500.0,0.00013698,2]
[399472903,1766398242426,-500.0,0.00013698,2]
[399472904,1766398242436,-500.0,0.00013698,2]
[399472905,1766398242445,-500.0,0.00013698,2]
[399472906,1766398242455,-500.0,0.00013698,2]
[399472907,1766398242464,-500.0,0.00013698,2]
[399472908,1766398242476,-500.0,0.00013698,2]
[399472909,1766398242485,-500.0,0.00013698,2]
[399472910,1766398242496,-500.0,0.00013698,2]
[399472911,1766398242507,-15708.21,0.00013699,2]
[399472912,1766398242517,-1000.0,0.00013699,2]
[399472913,1766398242527,-8787.53,0.00013699,2]
[399472914,1766398242536,-620.44,0.000137,2]
[399472915,1766398242546,-620.44,0.000137,2]
[399472916,1766398242555,-620.44,0.000137,2]
[399472917,1766398242564,-620.44,0.000137,2]
[399472918,1766398242573,-620.44,0.000137,2]
[399472919,1766398242583,-716.0,0.00013725,2]
[399472920,1766398242592,-500.0,0.00013726,2]
[399472921,1766398242601,-716.0,0.00013753,2]
[399472922,1766398242611,-500.0,0.00013753,2]
[399472923,1766398242623,-716.0,0.0001378,2]
[399472924,1766398242632,-500.0,0.0001378,2]
[399472925,1766398242644,-1000.0,0.00013791,2]
[399472926,1766398242654,-716.0,0.00013807,2]
[399472927,1766398242664,-500.0,0.00013808,2]
[399472928,1766398242674,-716.0,0.00013835,2]
[399472929,1766398242684,-500.0,0.00013835,2]
[399472930,1766398242693,-716.0,0.00013862,2]
[399472931,1766398242703,-500.0,0.00013863,2]
[399472932,1766398242715,-716.0,0.0001389,2]
[399472933,1766398242728,-500.0,0.0001389,2]
[399472934,1766398242738,-500.0,0.0001389,2]
[399472935,1766398242747,-500.0,0.0001389,2]
[399472936,1766398242756,-500.0,0.0001389,2]
[399472937,1766398242766,-500.0,0.0001389,2]
[399472938,1766398242776,-500.0,0.0001389,2]
[399472939,1766398242789,-500.0,0.0001389,2]
[399472940,1766398242798,-500.0,0.0001389,2]
[399472941,1766398242807,-500.0,0.0001389,2]
[399472942,1766398242818,-632.65,0.0001389,2]
[399472943,1766398242827,-500.0,0.0001389,2]
[399472944,1766398242837,-500.0,0.0001389,2]
[399472945,1766398242847,-506.35570593,0.0001389,2]
[399472946,1766398242858,-500.0,0.0001389,2]
[399472947,1766398242867,-500.0,0.0001389,2]
[399472948,1766398242877,-335.96353796,0.0001389,2]
[399472950,1766398242886,-500.0,0.0001389,2]
[399472951,1766398242895,-500.0,0.0001389,2]
[399472952,1766398242904,-500.0,0.0001389,2]
[399472953,1766398242913,-531.19217755,0.0001389,2]
[399472954,1766398242922,-500.0,0.0001389,2]
[399472956,1766398243258,-500.0,0.0001389,2]
[399472957,1766398243273,-500.0,0.0001389,2]
[399472958,1766398243283,-500.0,0.0001389,2]
[399472959,1766398243293,-500.0,0.0001389,2]
[399472960,1766398243303,-500.0,0.0001389,2]
[399472961,1766398243312,-500.0,0.0001389,2]
[399472962,1766398243322,-505.95717234,0.0001389,2]
[399472963,1766398243331,-500.0,0.0001389,2]
[399472964,1766398243340,-500.0,0.0001389,2]
[399472965,1766398243350,-500.0,0.0001389,2]
[399472966,1766398243359,-511.45544987,0.0001389,2]
[399472967,1766398243368,-500.0,0.0001389,2]
[399472968,1766398243378,-500.0,0.0001389,2]
[399472969,1766398243387,-500.0,0.0001389,2]
[399472970,1766398243396,-500.0,0.0001389,2]
[399472971,1766398243406,-500.0,0.0001389,2]
[399472972,1766398243415,-500.0,0.0001389,2]
[399472973,1766398243425,-500.0,0.0001389,2]
[399472974,1766398243434,-500.0,0.0001389,2]
[399472975,1766398243443,-500.0,0.0001389,2]
[399472976,1766398243452,-500.0,0.0001389,2]
[399472977,1766398243461,-500.0,0.0001389,2]
[399472978,1766398243471,-510.77645617,0.0001389,2]
[399472979,1766398243480,-500.0,0.0001389,2]
[399472980,1766398243489,-500.0,0.0001389,2]
[399472981,1766398243499,-500.0,0.0001389,2]
[399472982,1766398243508,-500.0,0.0001389,2]
[399472983,1766398243517,-500.0,0.0001389,2]
[399472984,1766398243526,-500.0,0.0001389,2]
[399472985,1766398243535,-500.0,0.0001389,2]
[399472987,1766398243545,-500.0,0.0001389,2]
[399472988,1766398243554,-500.0,0.0001389,2]
[399472990,1766398243563,-500.0,0.0001389,2]
[399472992,1766398243572,-500.0,0.0001389,2]
[399472993,1766398243581,-507.17995557,0.0001389,2]
[399472995,1766398243590,-500.0,0.0001389,2]
[399472997,1766398243599,-500.0,0.0001389,2]
[399472998,1766398243608,-500.0,0.0001389,2]
[399473000,1766398243617,-373.89365293,0.0001389,2]
[399473001,1766398243626,-500.0,0.0001389,2]
[399473002,1766398243635,-502.26583075,0.0001389,2]
[399473003,1766398243644,-500.0,0.0001389,2]
[399473004,1766398243653,-406.41137413,0.0001389,2]
[399473005,1766398243662,-11200.7795947,0.00013892,2]
[399473006,1766398243671,-21414.08497626,0.00013892,2]
[399473007,1766398243680,-701.2,0.000139,2]
[399473008,1766398243690,-716.0,0.00013917,2]
[399473009,1766398243699,-500.0,0.00013917,2]
[399473010,1766398243707,-716.0,0.00013944,2]
[399473011,1766398243716,-500.0,0.00013945,2]
[399473012,1766398243726,-716.0,0.00013972,2]
[399473013,1766398243735,-2469.13,0.00013972,2]
[399473014,1766398243744,-500.0,0.00013972,2]
[399473015,1766398243754,-728.68661255,0.00013999,2]
[399473016,1766398243763,-463.82750768,0.00014,2]
[399473017,1766398243782,-179.52,0.00014015,2]
[399473018,1766398243794,-500.0,0.00014089,2]
[399473019,1766398243803,-300.0,0.00014187,2]
[399473020,1766398243813,-300.0,0.00014187,2]
[399473021,1766398243824,-300.0,0.00014187,2]
[399473022,1766398243837,-300.0,0.00014187,2]
[399473023,1766398243847,-300.0,0.00014187,2]
[399473024,1766398243859,-500.0,0.00014191,2]
[399473025,1766398243869,-167.2591655,0.00014191,2]
[399473026,1766398243880,-937.14852253,0.00014191,2]
[399473027,1766398243891,-500.0,0.00014191,2]
[399473028,1766398243901,-1000.0,0.00014191,2]
[399473029,1766398243911,-1000.0,0.00014191,2]
[399473030,1766398243922,-1000.0,0.00014191,2]
[399473031,1766398243932,-500.0,0.00014191,2]
[399473032,1766398243943,-1000.0,0.00014191,2]
[399473033,1766398243953,-1000.0,0.00014191,2]
[399473034,1766398243964,-572.96293358,0.00014191,2]
[399473035,1766398243973,-1000.0,0.00014191,2]
[399473036,1766398243986,-500.0,0.00014191,2]
[399473037,1766398243997,-500.81193052,0.00014191,2]
[399473038,1766398244010,-1000.0,0.00014191,2]
[399473039,1766398244022,-1000.0,0.00014191,2]
[399473040,1766398244033,-2500.0,0.00014197,2]
[399473041,1766398244044,-600.0,0.00014197,2]
[399473042,1766398244053,-600.0,0.00014197,2]
[399473043,1766398244064,-600.0,0.00014197,2]
[399473044,1766398244074,-600.0,0.00014197,2]
[399473045,1766398244087,-600.0,0.00014197,2]
[399473046,1766398244099,-500.0,0.00014237,2]
[399473047,1766398244111,-502.99897723,0.00014237,2]
[399473048,1766398244121,-500.0,0.00014237,2]
[399473049,1766398244131,-2469.13,0.00014246,2]
[399473050,1766398244143,-11200.7795947,0.00014268,2]
[399473051,1766398244156,-21414.08497626,0.00014268,2]
[399473052,1766398244167,-1000.0,0.00014269,2]
[399473053,1766398244178,-315.82,0.00014327,2]
[399473054,1766398244189,-8327.27139341,0.00014368,2]
[399473055,1766398244199,-183.64379238,0.00014492,2]
[399473056,1766398244211,-2469.13,0.0001452,2]
[399473057,1766398244221,-500.0,0.00014595,2]
[399473058,1766398244233,-500.0,0.00014595,2]
[399473059,1766398244244,-500.0,0.00014595,2]
[399473060,1766398244255,-500.0,0.00014595,2]
[399473061,1766398244267,-500.0,0.00014595,2]
[399473062,1766398244277,-500.0,0.00014595,2]
[399473063,1766398244289,-255.0,0.00014623,2]
[399473064,1766398244302,-11200.7795947,0.00014644,2]
[399473065,1766398244314,-21414.08497626,0.00014644,2]
[399473066,1766398244324,-1680.0,0.00014675,2]
[399473067,1766398244336,-500.0,0.00014738,2]
[399473068,1766398244347,-500.0,0.00014738,2]
[399473069,1766398244358,-500.0,0.00014738,2]
[399473070,1766398244368,-214.74412357,0.00014738,2]
[399473071,1766398244380,-1500.0,0.00014739,2]
[399473072,1766398244390,-1500.0,0.00014739,2]
[399473073,1766398244401,-1500.0,0.00014739,2]
[399473074,1766398244412,-1500.0,0.00014739,2]
[399473075,1766398244423,-1500.0,0.00014739,2]
[399473076,1766398244434,-1500.0,0.00014739,2]
[399473077,1766398244444,-1500.0,0.00014739,2]
[399473078,1766398244454,-1500.0,0.00014739,2]
[399473079,1766398244464,-151.0,0.00014788,2]
[399473080,1766398244474,-151.0,0.00014788,2]
[399473081,1766398244484,-151.0,0.00014793,2]
[399473082,1766398244495,-2469.13,0.00014794,2]
[399473083,1766398244506,-150.1,0.00014988,2]
[399473084,1766398244517,-11200.7795947,0.0001502,2]
[399473085,1766398244527,-21414.08497626,0.0001502,2]
[399473086,1766398244537,-2469.13,0.00015068,2]
[399473087,1766398244547,-500.0,0.00015068,2]
[399473088,1766398244558,-500.0,0.00015095,2]
[399473089,1766398244571,-500.0,0.00015123,2]
[399473090,1766398244581,-500.0,0.0001515,2]
[399473091,1766398244592,-500.0,0.00015166,2]
[399473092,1766398244603,-500.0,0.00015166,2]
[399473093,1766398244613,-513.13109184,0.00015166,2]
[399473094,1766398244624,-1000.0,0.00015167,2]
[399473095,1766398244634,-1000.0,0.00015167,2]
[399473096,1766398244645,-709.535,0.00015167,2]
[399473097,1766398244656,-1000.0,0.00015167,2]
[399473098,1766398244667,-1000.0,0.00015167,2]
[399473099,1766398244677,-929.933,0.00015167,2]
[399473100,1766398244686,-1000.0,0.00015167,2]
[399473101,1766398244697,-1000.0,0.00015167,2]
[399473102,1766398244707,-1000.0,0.00015167,2]
[399473103,1766398244718,-743.412,0.00015167,2]
[399473104,1766398244728,-500.0,0.00015178,2]
[399473105,1766398244738,-3815.82573577,0.00015283,2]
[399473106,1766398244748,-507.00799583,0.00015287,2]
[399473107,1766398244758,-2000.0,0.00015287,2]
[399473108,1766398244769,-1528.55690441,0.00015287,2]
[399473109,1766398244783,-2000.0,0.00015287,2]
[399473110,1766398244793,-1500.0,0.00015287,2]
[399473111,1766398244804,-300.59467454,0.00015287,2]
[399473112,1766398244814,-1090.93800386,0.00015287,2]
[399473113,1766398244826,-2000.0,0.00015287,2]
[399473114,1766398244837,-160.68439963,0.00015288,2]
[399473115,1766398244849,-155.74604872,0.00015288,2]
[399473116,1766398244860,-158.67617392,0.00015288,2]
[399473117,1766398244870,-157.04290017,0.00015288,2]
[399473118,1766398244882,-157.86754475,0.00015288,2]
[399473119,1766398244893,-150.0,0.00015288,2]
[399473120,1766398244903,-152.87156213,0.00015288,2]
[399473121,1766398244913,-156.34624358,0.00015288,2]
[399473122,1766398244924,-500.0,0.00015306,2]
[399473123,1766398244935,-2469.13,0.00015342,2]
[399473124,1766398244945,-11200.7795947,0.00015396,2]
[399473125,1766398244955,-21414.08497626,0.00015396,2]
[399473126,1766398244966,-500.0,0.00015425,2]
[399473127,1766398244976,-183.64379238,0.00015468,2]
[399473128,1766398244986,-500.0,0.00015493,2]
[399473129,1766398244997,-303.36115033,0.00015518,2]
[399473130,1766398245008,-500.0,0.00015555,2]
[399473131,1766398245019,-500.0,0.00015569,2]
[399473132,1766398245030,-500.0,0.00015569,2]
[399473133,1766398245040,-500.0,0.00015569,2]
[399473134,1766398245052,-500.0,0.00015569,2]
[399473135,1766398245062,-500.0,0.00015569,2]
[399473136,1766398245072,-500.0,0.00015569,2]
[399473137,1766398245082,-500.0,0.00015569,2]
[399473138,1766398245093,-500.0,0.00015569,2]
[399473139,1766398245104,-500.0,0.00015569,2]
[399473140,1766398245114,-500.0,0.00015569,2]
[399473141,1766398245123,-500.0,0.00015569,2]
[399473142,1766398245133,-537.93493463,0.00015569,2]
[399473143,1766398245144,-1211.20029991,0.00015569,2]
[399473144,1766398245154,-500.0,0.00015569,2]
[399473145,1766398245165,-500.0,0.00015569,2]
[399473146,1766398245176,-500.0,0.00015569,2]
[399473147,1766398245186,-500.0,0.00015569,2]
[399473148,1766398245197,-500.0,0.00015569,2]
[399473149,1766398245208,-500.0,0.00015569,2]
[399473150,1766398245218,-500.0,0.00015569,2]
[399473151,1766398245228,-500.0,0.00015569,2]
[399473152,1766398245238,-500.0,0.00015569,2]
[399473153,1766398245249,-500.0,0.00015569,2]
[399473154,1766398245259,-500.0,0.00015569,2]
[399473155,1766398245269,-500.0,0.00015569,2]
[399473156,1766398245280,-500.0,0.00015569,2]
[399473157,1766398245290,-500.0,0.00015569,2]
[399473158,1766398245300,-500.0,0.00015569,2]
[399473159,1766398245310,-500.0,0.00015569,2]
[399473160,1766398245321,-500.0,0.00015569,2]
[399473161,1766398245332,-500.0,0.00015569,2]
[399473162,1766398245342,-500.0,0.00015569,2]
[399473163,1766398245353,-151.0,0.00015569,2]
[399473164,1766398245362,-500.0,0.00015569,2]
[399473165,1766398245373,-500.0,0.00015569,2]
[399473166,1766398245383,-314.4413385,0.00015569,2]
[399473167,1766398245393,-200.0,0.00015569,2]
[399473168,1766398245402,-207.4,0.00015569,2]
[399473169,1766398245412,-215.0738,0.00015569,2]
[399473170,1766398245424,-223.0315306,0.00015569,2]
[399473171,1766398245435,-231.28369723,0.00015569,2]
[399473172,1766398245446,-239.84119403,0.00015569,2]
[399473173,1766398245457,-248.71531821,0.00015569,2]
[399473174,1766398245468,-257.91778498,0.00015569,2]
[399473175,1766398245478,-2469.13,0.00015616,2]
[399473176,1766398245488,-564.0,0.00015636,2]
[399473177,1766398245498,-4839.31,0.00015636,2]
[399473178,1766398245509,-2429.0,0.00015636,2]
[399473179,1766398245518,-11200.7795947,0.00015772,2]
[399473180,1766398245528,-21414.08497626,0.00015772,2]
[399473181,1766398245538,-433.0,0.00015826,2]
[399473182,1766398245549,-353.92874992,0.00015835,2]
[399473183,1766398245560,-2500.0,0.00015835,2]
[399473184,1766398245570,-2500.0,0.00015835,2]
[399473185,1766398245580,-277.18,0.00015845,2]
[399473186,1766398245591,-1000.0,0.00015854,2]
[399473187,1766398245602,-2469.13,0.0001589,2]
[399473188,1766398245617,-500.0,0.00015999,2]
[399473189,1766398245627,-500.0,0.00015999,2]
[399473190,1766398245637,-500.0,0.00015999,2]
[399473191,1766398245647,-179.52,0.00016,2]
[399473192,1766398245657,-3470.125,0.00016047,2]
[399473193,1766398245668,-1609.0,0.00016047,2]
[399473194,1766398245679,-614.537,0.00016047,2]
[399473195,1766398245690,-1326.4,0.00016047,2]
[399473196,1766398245701,-1267.218,0.00016047,2]
[399473197,1766398245711,-520.13,0.00016047,2]
[399473198,1766398245721,-1198.0,0.00016047,2]
[399473199,1766398245732,-912.827,0.00016047,2]
[399473200,1766398245741,-18120.07,0.00016116,2]
[399473201,1766398245751,-150.0,0.00016137,2]
[399473202,1766398245760,-2351.0,0.00016143,2]
[399473203,1766398245770,-11200.7795947,0.00016148,2]
[399473204,1766398245783,-21414.08497626,0.00016148,2]
[399473205,1766398245793,-2469.13,0.00016164,2]
[399473206,1766398245802,-1501.91914661,0.00016226,5]
[399473207,1766398245812,-190.01,0.00016284,2]
[399473208,1766398245823,-218.24696705,0.00016284,2]
[399473209,1766398245832,-965.0,0.00016325,2]
[399473210,1766398245842,-12348.0,0.00016336,2]
[399473211,1766398245854,-10000.0,0.00016373,2]
[399473212,1766398245864,-384.68827765,0.0001638,2]
[399473213,1766398245873,-736.82314427,0.00016383,2]
[399473214,1766398245883,-3000.0,0.00016383,2]
[399473215,1766398245893,-1000.0,0.000164,2]
[399473216,1766398245903,-151.0,0.00016435,2]
[399473217,1766398245912,-500.0,0.00016437,2]
[399473218,1766398245922,-500.0,0.00016437,2]
[399473219,1766398245931,-500.0,0.00016437,2]
[399473220,1766398245941,-500.0,0.00016437,2]
[399473221,1766398245950,-500.0,0.00016437,2]
[399473222,1766398245960,-500.0,0.00016437,2]
[399473223,1766398245970,-500.0,0.00016437,2]
[399473224,1766398245979,-2469.13,0.00016438,2]
[399473225,1766398245989,-500.0,0.00016438,2]
[399473226,1766398245999,-500.0,0.00016438,2]
[399473227,1766398246008,-500.0,0.00016438,2]
[399473228,1766398246018,-500.0,0.00016438,2]
[399473229,1766398246027,-500.0,0.00016438,2]
[399473230,1766398246037,-500.0,0.00016438,2]
[399473231,1766398246046,-500.0,0.00016438,2]
[399473232,1766398246056,-500.0,0.00016438,2]
[399473233,1766398246065,-1939.68848535,0.00016438,2]
[399473234,1766398246076,-1939.68848535,0.00016438,2]
[399473235,1766398246086,-1939.68848535,0.00016438,2]
[399473236,1766398246095,-1939.68848535,0.00016438,2]
[399473237,1766398246105,-1939.68848535,0.00016438,2]
[399473238,1766398246115,-1939.68848535,0.00016438,2]
[399473239,1766398246124,-1939.68848535,0.00016438,2]
[399473240,1766398246133,-1939.68848535,0.00016438,2]
[399473241,1766398246143,-1939.68848535,0.00016438,2]
[399473242,1766398246152,-1939.68848535,0.00016438,2]
[399473243,1766398246161,-1939.68848535,0.00016438,2]
[399473244,1766398246171,-1939.68848535,0.00016438,2]
[399473245,1766398246180,-1939.68848535,0.00016438,2]
[399473246,1766398246190,-1939.68848535,0.00016438,2]
[399473247,1766398246200,-1939.68848535,0.00016438,2]
[399473248,1766398246211,-1939.68848535,0.00016438,2]
[399473249,1766398246221,-1939.68848535,0.00016438,2]
[399473250,1766398246231,-1939.68848535,0.00016438,2]
[399473251,1766398246240,-1939.68848535,0.00016438,2]
[399473252,1766398246250,-1939.68848535,0.00016438,2]
[399473253,1766398246259,-1939.68848535,0.00016438,2]
[399473254,1766398246268,-1939.68848535,0.00016438,2]
[399473255,1766398246278,-1939.68848535,0.00016438,2]
[399473256,1766398246288,-1939.68848535,0.00016438,2]
[399473257,1766398246298,-1939.68848535,0.00016438,2]
[399473258,1766398246308,-1939.68848535,0.00016438,2]
[399473259,1766398246317,-1939.68848535,0.00016438,2]
[399473260,1766398246327,-1939.68848535,0.00016438,2]
[399473261,1766398246336,-1939.68848535,0.00016438,2]
[399473262,1766398246346,-1939.68848535,0.00016438,2]
[399473263,1766398246355,-1939.68848535,0.00016438,2]
[399473264,1766398246365,-1939.68848535,0.00016438,2]
[399473265,1766398246374,-1939.68848535,0.00016438,2]
[399473266,1766398246387,-1939.68848535,0.00016438,2]
[399473267,1766398246397,-1939.68848535,0.00016438,2]
[399473268,1766398246406,-1939.68848535,0.00016438,2]
[399473269,1766398246416,-1939.68848535,0.00016438,2]
[399473270,1766398246426,-1939.68848535,0.00016438,2]
[399473271,1766398246435,-1939.68848535,0.00016438,2]
[399473272,1766398246444,-1939.68848535,0.00016438,2]
[399473273,1766398246454,-1939.68848535,0.00016438,2]
[399473274,1766398246463,-1939.68848535,0.00016438,2]
[399473275,1766398246472,-1939.68848535,0.00016438,2]
[399473276,1766398246483,-1939.68848535,0.00016438,2]
[399473277,1766398246492,-1939.68848535,0.00016438,2]
[399473278,1766398246501,-1939.68848535,0.00016438,2]
[399473279,1766398246511,-1939.68848535,0.00016438,2]
[399473280,1766398246520,-1939.68848535,0.00016438,2]
[399473281,1766398246529,-1939.68848535,0.00016438,2]
[399473282,1766398246539,-1939.68848535,0.00016438,2]
[399473284,1766398246549,-1939.68848535,0.00016438,2]
[399473286,1766398246558,-1939.68848535,0.00016438,2]
[399473287,1766398246567,-1939.68848535,0.00016438,2]
[399473288,1766398246576,-1939.68848535,0.00016438,2]
[399473289,1766398246586,-1939.68848535,0.00016438,2]
[399473290,1766398246595,-1939.68848535,0.00016438,2]
[399473291,1766398246605,-1939.68848535,0.00016438,2]
[399473292,1766398246614,-1939.68848535,0.00016438,2]
[399473293,1766398246626,-1939.68848535,0.00016438,2]
[399473294,1766398246636,-1939.68848535,0.00016438,2]
[399473295,1766398246645,-1939.68848535,0.00016438,2]
[399473297,1766398246654,-1939.68848535,0.00016438,2]
[399473299,1766398246664,-10430.17,0.00016438,2]
[399473300,1766398246673,-800.66640866,0.00016438,2]
[399473302,1766398246683,-500.0,0.00016465,2]
[399473303,1766398246692,-500.89063362,0.00016473,2]
[399473304,1766398246701,-500.23459526,0.00016473,2]
[399473305,1766398246710,-500.0,0.00016473,2]
[399473306,1766398246720,-500.25404697,0.00016473,2]
[399473307,1766398246729,-162.4264826,0.00016473,2]
[399473308,1766398246739,-500.59656143,0.00016473,2]
[399473309,1766398246749,-570.44343091,0.00016473,2]
[399473310,1766398246758,-500.92519729,0.00016473,2]
[399473311,1766398246767,-500.0,0.00016473,2]
[399473312,1766398246778,-500.0,0.00016473,2]
[399473313,1766398246790,-500.40105858,0.00016473,2]
[399473314,1766398246799,-500.28027426,0.00016473,2]
[399473315,1766398246808,-500.0,0.00016473,2]
[399473316,1766398246818,-182.65808094,0.00016473,2]
[399473317,1766398246828,-500.4866391,0.00016473,2]
[399473318,1766398246839,-500.23422882,0.00016473,2]
[399473319,1766398246848,-500.0,0.00016473,2]
[399473320,1766398246859,-500.88851044,0.00016473,2]
[399473321,1766398246868,-500.71610448,0.00016473,2]
[399473322,1766398246877,-334.69874754,0.00016473,2]
[399473323,1766398246886,-500.89704022,0.00016473,2]
[399473324,1766398246895,-500.85006285,0.00016473,2]
[399473325,1766398246904,-500.5380025,0.00016473,2]
[399473326,1766398246914,-556.12570782,0.00016473,2]
[399473327,1766398246923,-500.0,0.00016473,2]
[399473328,1766398246932,-500.14110793,0.00016473,2]
[399473329,1766398246941,-639.90034145,0.00016473,2]
[399473330,1766398246951,-500.0,0.00016473,2]
[399473331,1766398246959,-500.23431497,0.00016473,2]
[399473332,1766398246969,-500.364387,0.00016473,2]
[399473333,1766398246978,-150.2134934,0.00016473,2]
[399473334,1766398246987,-500.0,0.00016473,2]
[399473335,1766398246996,-500.0,0.00016473,2]
[399473336,1766398247006,-500.94017287,0.00016473,2]
[399473337,1766398247016,-500.26932841,0.00016473,2]
[399473338,1766398247027,-160.22398459,0.00016473,2]
[399473339,1766398247036,-500.84177563,0.00016473,2]
[399473340,1766398247047,-160.23136935,0.00016473,2]
[399473341,1766398247056,-160.23033873,0.00016473,2]
[399473342,1766398247065,-500.93365607,0.00016473,2]
[399473343,1766398247074,-160.22953204,0.00016473,2]
[399473344,1766398247083,-500.23816043,0.00016473,2]
[399473345,1766398247093,-160.22953259,0.00016473,2]
[399473346,1766398247103,-519.00415051,0.00016473,2]
[399473347,1766398247112,-500.53011343,0.00016473,2]
[399473348,1766398247121,-500.63864721,0.00016473,2]
[399473349,1766398247130,-33.23938752,0.00016473,2]
[399473350,1766398247954,-467.6055518,0.00016473,2]
[399473351,1766398247964,-500.0,0.00016473,2]
[399473352,1766398247973,-500.31559723,0.00016473,2]
[399473353,1766398247982,-500.0,0.00016473,2]
[399473354,1766398247991,-500.0,0.00016473,2]
[399473355,1766398247999,-500.0,0.00016473,2]
[399473356,1766398248009,-500.0,0.00016473,2]
[399473357,1766398248018,-500.0,0.00016473,2]
[399473358,1766398248027,-500.0,0.00016473,2]
[399473359,1766398248036,-500.0,0.00016473,2]
[399473360,1766398248045,-500.0,0.00016473,2]
[399473361,1766398248054,-500.0,0.00016473,2]
[399473362,1766398248063,-500.76356067,0.00016473,2]
[399473363,1766398248072,-500.69670875,0.00016473,2]
[399473364,1766398248081,-566.05199029,0.00016473,2]
[399473365,1766398248090,-500.0,0.00016473,2]
[399473366,1766398248099,-500.0,0.00016473,2]
[399473367,1766398248108,-500.47037435,0.00016473,2]
[399473368,1766398248117,-500.0,0.00016473,2]
[399473369,1766398248126,-577.70558009,0.00016473,2]
[399473370,1766398248135,-500.0,0.00016473,2]
[399473371,1766398248143,-500.19873097,0.00016473,2]
[399473372,1766398248152,-150.0,0.0001648,2]
[399473373,1766398248162,-500.0,0.0001648,2]
[399473374,1766398248172,-150.0,0.0001648,2]
[399473375,1766398248181,-500.0,0.0001648,2]
[399473376,1766398248191,-150.0,0.0001648,2]
[399473377,1766398248199,-150.0,0.0001648,2]
[399473378,1766398248209,-150.0,0.0001648,2]
[399473379,1766398248218,-150.0,0.0001648,2]
[399473380,1766398248227,-150.0,0.0001648,2]
[399473381,1766398248236,-500.0,0.0001648,2]
[399473382,1766398248245,-500.0,0.0001648,2]
[399473383,1766398248254,-150.0,0.0001648,2]
[399473384,1766398248264,-500.0,0.00016493,2]
[399473385,1766398248273,-315.82,0.00016498,2]
[399473386,1766398248282,-150.0,0.00016507,2]
[399473387,1766398248293,-500.0,0.00016507,2]
[399473388,1766398248303,-150.0,0.00016507,2]
[399473389,1766398248312,-500.0,0.00016507,2]
[399473390,1766398248322,-150.0,0.00016507,2]
[399473391,1766398248332,-150.0,0.00016507,2]